fUST/lending_fUST_20250611
["ID","MTS","AMOUNT","RATE_DAILY","PERIOD"]
[365309347,1749592243245,-2617.65,0.00022191,4]
[365309348,1749592243258,-2017.81,0.00022191,4]
[365309349,1749592243279,-488.46,0.00022191,4]
[365309350,1749592243297,-510.53,0.00022191,4]
[365309351,1749592243307,-571.73,0.00022191,4]
[365309352,1749592243316,-2710.3,0.00022191,4]
[365309353,1749592243326,-478.44,0.00022191,4]
[365309354,1749592243335,-3379.59,0.00022191,4]
[365309355,1749592243345,-460.0,0.00022191,4]
[365309356,1749592243354,-320.0,0.00022191,4]
[365309357,1749592243363,-460.0,0.00022191,4]
[365309358,1749592243372,-460.0,0.00022191,4]
[365309359,1749592243381,-1112.05,0.00022191,4]
[365309361,1749592243391,-460.0,0.00022191,4]
[365309363,1749592243401,-460.0,0.00022191,4]
[365309365,1749592243410,-460.0,0.00022191,4]
[365309367,1749592243420,-2300.68,0.00022191,4]
[365309368,1749592243429,-802.54,0.00022191,4]
[365309369,1749592243439,-280.0,0.00022191,4]
[365309370,1749592243448,-460.0,0.00022191,4]
[365309371,1749592243457,-2617.07,0.00022191,4]
[365309372,1749592243467,-460.0,0.00022191,4]
[365309373,1749592243476,-1559.12,0.00022191,4]
[365309374,1749592243486,-1007.67,0.00022191,4]
[365309375,1749592243495,-460.0,0.00022191,4]
[365309376,1749592243504,-1036.48,0.00022191,4]
[365309377,1749592243514,-3487.58575877,0.0002221,6]
[365309378,1749592243524,-769.59,0.00022287,4]
[365309379,1749592243537,-3487.58575877,0.00022314,7]
[365309380,1749592243546,-769.59,0.00022387,7]
[365309381,1749592243555,-3487.58575877,0.00022417,7]
[365309382,1749592243644,-1063.42554781,0.00022444,2]
[365309383,1749592243654,-330.0,0.00022465,4]
[365309384,1749592243664,-460.0,0.00022465,4]
[365309385,1749592243674,-261.39,0.00022465,4]
[365309386,1749592243683,-460.0,0.00022465,4]
[365309387,1749592243693,-460.0,0.00022465,4]
[365309388,1749592243703,-460.0,0.00022465,4]
[365309389,1749592243712,-460.0,0.00022465,4]
[365309390,1749592243722,-1250.35,0.00022465,4]
[365309391,1749592243732,-460.0,0.00022465,4]
[365309392,1749592243741,-460.0,0.00022465,4]
[365309393,1749592243751,-460.0,0.00022465,4]
[365309394,1749592243760,-460.0,0.00022465,4]
[365309395,1749592243770,-710.28,0.00022465,4]
[365309396,1749592243779,-2863.13,0.00022465,4]
[365309397,1749592243789,-460.0,0.00022465,4]
[365309398,1749592243798,-460.0,0.00022465,4]
[365309399,1749592243807,-1134.58,0.00022465,4]
[365309400,1749592243817,-622.77,0.00022465,4]
[365309401,1749592243825,-568.86,0.00022465,4]
[365309402,1749592243835,-460.0,0.00022465,4]
[365309403,1749592243844,-191.6,0.00022465,4]
[365309404,1749592243854,-460.0,0.00022465,4]
[365309405,1749592243863,-527.47,0.00022465,4]
[365309406,1749592243874,-460.0,0.00022465,4]
[365309407,1749592243884,-2638.06,0.00022465,4]
[365309408,1749592243893,-460.0,0.00022465,4]
[365309409,1749592243902,-536.44,0.00022465,4]
[365309410,1749592243911,-571.16,0.00022465,2]
[365309411,1749592243920,-719.51,0.00022465,4]
[365309412,1749592243930,-460.0,0.00022465,4]
[365309413,1749592243939,-2214.42,0.00022465,4]
[365309414,1749592243948,-2617.65,0.00022465,4]
[365309415,1749592243957,-2017.81,0.00022465,4]
[365309416,1749592243968,-488.46,0.00022465,4]
[365309417,1749592243978,-510.53,0.00022465,4]
[365309418,1749592243988,-571.73,0.00022465,4]
[365309419,1749592243998,-2710.3,0.00022465,4]
[365309420,1749592244007,-3379.59,0.00022465,4]
[365309421,1749592244016,-460.0,0.00022465,4]
[365309422,1749592244025,-300.0,0.00022465,4]
[365309423,1749592244036,-460.0,0.00022465,4]
[365309424,1749592244045,-1112.05,0.00022465,4]
[365309425,1749592244054,-460.0,0.00022465,4]
[365309426,1749592244063,-460.0,0.00022465,4]
[365309427,1749592244073,-460.0,0.00022465,4]
[365309428,1749592244082,-2300.68,0.00022465,4]
[365309429,1749592244091,-802.54,0.00022465,4]
[365309430,1749592244101,-460.0,0.00022465,4]
[365309431,1749592244110,-2617.07,0.00022465,4]
[365309432,1749592244122,-411.54251527,0.00022465,4]
[365309433,1749592244131,-1559.12,0.00022465,4]
[365309434,1749592244140,-1007.67,0.00022465,4]
[365309435,1749592244148,-460.0,0.00022465,4]
[365309436,1749592244157,-1036.48,0.00022465,4]
[365309437,1749592244166,-1500.0,0.00022468,2]
[365309438,1749592244175,-1500.0,0.00022468,2]
[365309439,1749592244184,-769.59,0.00022487,2]
[365309440,1749592244193,-1136.84,0.000225,7]
[365309441,1749592244204,-1000.0,0.00022521,2]
[365309442,1749592244214,-1200.0,0.00022521,2]
[365309443,1749592244223,-3487.58575877,0.00022521,7]
[365309444,1749592244233,-500.0,0.00022548,2]
[365309445,1749592244243,-500.0,0.00022559,2]
[365309446,1749592244252,-1000.0,0.00022565,2]
[365309447,1749592244261,-769.59,0.00022587,2]
[365309448,1749592244270,-3786.17,0.00022591,2]
[365309449,1749592244279,-2239.37,0.000226,7]
[365309450,1749592244288,-3487.58575877,0.00022624,7]
[365309451,1749592244297,-769.59,0.00022687,2]
[365309452,1749592244306,-229.6792923,0.00022705,2]
[365309453,1749592244315,-160.0,0.00022705,2]
[365309454,1749592244324,-842.5625,0.00022723,2]
[365309455,1749592244333,-213.1263252,0.00022723,2]
[365309456,1749592244342,-424.12530924,0.00022723,2]
[365309457,1749592244352,-160.0,0.00022723,2]
[365309458,1749592244361,-160.0,0.00022723,2]
[365309459,1749592244371,-3487.58575877,0.00022728,7]
[365309460,1749592244380,-160.0,0.00022735,2]
[365309461,1749592244390,-460.0,0.00022739,4]
[365309462,1749592244398,-460.0,0.00022739,4]
[365309463,1749592244408,-460.0,0.00022739,4]
[365309464,1749592244418,-415.47918669,0.00022739,4]
[365309465,1749592244427,-460.0,0.00022739,4]
[365309466,1749592244436,-1250.35,0.00022739,4]
[365309467,1749592244445,-460.0,0.00022739,4]
[365309468,1749592244454,-460.0,0.00022739,4]
[365309469,1749592244463,-460.0,0.00022739,4]
[365309470,1749592244473,-460.0,0.00022739,4]
[365309471,1749592244482,-710.28,0.00022739,4]
[365309472,1749592244492,-2863.13,0.00022739,4]
[365309473,1749592244502,-460.0,0.00022739,4]
[365309474,1749592244511,-460.0,0.00022739,4]
[365309475,1749592244521,-1134.58,0.00022739,4]
[365309476,1749592244533,-622.77,0.00022739,4]
[365309477,1749592244543,-568.86,0.00022739,4]
[365309478,1749592244552,-460.0,0.00022739,4]
[365309479,1749592244562,-223.51229294,0.00022739,4]
[365309480,1749592244571,-527.47,0.00022739,4]
[365309481,1749592244581,-460.0,0.00022739,4]
[365309482,1749592244590,-2638.06,0.00022739,4]
[365309483,1749592244599,-460.0,0.00022739,4]
[365309484,1749592244608,-536.44,0.00022739,4]
[365309485,1749592244619,-571.16,0.00022739,2]
[365309486,1749592244628,-719.51,0.00022739,4]
[365309487,1749592244637,-460.0,0.00022739,4]
[365309488,1749592244646,-2214.42,0.00022739,4]
[365309489,1749592244655,-2617.65,0.00022739,4]
[365309490,1749592244664,-2017.81,0.00022739,4]
[365309491,1749592244674,-488.46,0.00022739,4]
[365309492,1749592244683,-510.53,0.00022739,4]
[365309493,1749592244692,-571.73,0.00022739,4]
[365309494,1749592244701,-2710.3,0.00022739,4]
[365309495,1749592244710,-3379.59,0.00022739,4]
[365309496,1749592244719,-460.0,0.00022739,4]
[365309497,1749592244729,-460.0,0.00022739,4]
[365309498,1749592244739,-1112.05,0.00022739,4]
[365309499,1749592244748,-460.0,0.00022739,4]
[365309500,1749592244757,-320.0,0.00022739,4]
[365309501,1749592244767,-460.0,0.00022739,4]
[365309502,1749592244776,-2300.68,0.00022739,4]
[365309503,1749592244785,-802.54,0.00022739,4]
[365309504,1749592244795,-460.0,0.00022739,4]
[365309505,1749592244804,-2063.67619682,0.00022739,4]
[365309506,1749592244924,-553.39380318,0.00022739,4]
[365309507,1749592244933,-731.01241399,0.00022739,4]
[365309508,1749592245131,-461.0,0.00021085,10]
[365309509,1749592245142,-309.76,0.00021085,10]
[365309510,1749592245151,-300.0,0.00021095,4]
[365309511,1749592245160,-400.63354523,0.00021095,4]
[365309512,1749592245169,-460.0,0.00021095,4]
[365309513,1749592245178,-300.0,0.00021369,4]
[365309514,1749592245187,-141.29242253,0.00021369,4]
[365309515,1749592245199,-258.70757747,0.00021369,4]
[365309516,1749592245208,-311.78223606,0.00021643,4]
[365309517,1749592245217,-828.10758601,0.00022739,4]
[365309518,1749592245226,-1007.67,0.00022739,4]
[365309519,1749592245236,-460.0,0.00022739,4]
[365309520,1749592245246,-1036.48,0.00022739,4]
[365309521,1749592245255,-160.0,0.00022754,2]
[365309522,1749592245265,-67.83022195,0.00022754,2]
[365309523,1749592245276,-696.7616219,0.00022754,2]
[365309524,1749592245290,-70.31280925,0.00022754,2]
[365309525,1749592245299,-769.59,0.00022787,6]
[365309526,1749592245308,-3487.58575877,0.00022831,8]
[365309527,1749592245317,-769.59,0.00022887,2]
[365309528,1749592245326,-151.0,0.000229,8]
[365309529,1749592245335,-420.0,0.0002292,2]
[365309530,1749592245344,-420.0,0.0002292,2]
[365309531,1749592245354,-1063.42554781,0.00022927,2]
[365309532,1749592245363,-3487.58575877,0.00022934,8]
[365309533,1749592245373,-769.59,0.00022987,2]
[365309534,1749592245382,-157.92258704,0.00022997,2]
[365309535,1749592245391,-202.26521121,0.00023,2]
[365309536,1749592245400,-460.0,0.00023013,4]
[365309537,1749592245409,-205.65,0.00023013,4]
[365309538,1749592245424,-460.0,0.00023013,4]
[365309539,1749592245440,-460.0,0.00023013,4]
[365309540,1749592245451,-1250.35,0.00023013,4]
[365309541,1749592245461,-460.0,0.00023013,4]
[365309542,1749592245471,-460.0,0.00023013,4]
[365309543,1749592245482,-460.0,0.00023013,4]
[365309544,1749592245491,-710.28,0.00023013,4]
[365309545,1749592245501,-2863.13,0.00023013,4]
[365309546,1749592245510,-460.0,0.00023013,4]
[365309547,1749592245519,-460.0,0.00023013,4]
[365309549,1749592245532,-1134.58,0.00023013,4]
[365309550,1749592245542,-622.77,0.00023013,4]
[365309552,1749592245551,-568.86,0.00023013,4]
[365309553,1749592245560,-460.0,0.00023013,4]
[365309554,1749592245570,-527.47,0.00023013,4]
[365309555,1749592245580,-460.0,0.00023013,4]
[365309556,1749592245589,-2638.06,0.00023013,4]
[365309557,1749592245599,-460.0,0.00023013,4]
[365309558,1749592245609,-536.44,0.00023013,4]
[365309559,1749592245620,-571.16,0.00023013,2]
[365309560,1749592245629,-719.51,0.00023013,4]
[365309561,1749592245639,-460.0,0.00023013,4]
[365309562,1749592245648,-2214.42,0.00023013,4]
[365309563,1749592245658,-2617.65,0.00023013,4]
[365309564,1749592245667,-2017.81,0.00023013,4]
[365309565,1749592245677,-488.46,0.00023013,4]
[365309566,1749592245686,-510.53,0.00023013,4]
[365309567,1749592245696,-571.73,0.00023013,4]
[365309568,1749592245705,-2710.3,0.00023013,4]
[365309569,1749592245714,-3379.59,0.00023013,4]
[365309570,1749592245724,-460.0,0.00023013,4]
[365309571,1749592245733,-460.0,0.00023013,4]
[365309572,1749592245742,-168.19497638,0.00023013,2]
[365309573,1749592245752,-460.0,0.00023013,4]
[365309575,1749592245761,-1112.05,0.00023013,4]
[365309576,1749592245771,-460.0,0.00023013,4]
[365309577,1749592245780,-2300.68,0.00023013,4]
[365309578,1749592245789,-802.54,0.00023013,4]
[365309579,1749592245802,-460.0,0.00023013,4]
[365309580,1749592245820,-2617.07,0.00023013,4]
[365309581,1749592245832,-1559.12,0.00023013,4]
[365309582,1749592245842,-1007.67,0.00023013,4]
[365309583,1749592245851,-460.0,0.00023013,4]
[365309584,1749592245861,-1036.48,0.00023013,4]
[365309585,1749592245871,-2000.0,0.00023016,2]
[365309586,1749592245882,-1580.0,0.00023028,2]
[365309587,1749592245892,-3487.58575877,0.00023038,8]
[365309588,1749592245902,-1800.0,0.00023068,2]
[365309589,1749592245912,-769.59,0.00023087,5]
[365309590,1749592245922,-151.0,0.000231,7]
[365309592,1749592245933,-54461.18,0.000231,2]
[365309593,1749592245943,-694.188962,0.000231,2]
[365309595,1749592245952,-694.188962,0.000231,2]
[365309597,1749592245963,-1500.0,0.00023113,2]
[365309598,1749592245972,-3487.58575877,0.00023141,8]
[365309599,1749592245982,-769.59,0.00023187,4]
[365309600,1749592245992,-500.0,0.00023199,2]
[365309601,1749592246002,-2732.0421735,0.00023199,2]
[365309602,1749592246012,-500.0,0.00023199,2]
[365309603,1749592246022,-2732.0421735,0.00023199,2]
[365309604,1749592246031,-2732.0421735,0.00023199,2]
[365309605,1749592246041,-2732.0421735,0.00023199,2]
[365309606,1749592246051,-2732.0421735,0.00023199,2]
[365309607,1749592246061,-2732.0421735,0.00023199,2]
[365309608,1749592246071,-2732.0421735,0.00023199,2]
[365309609,1749592246080,-2732.0421735,0.00023199,2]
[365309610,1749592246089,-500.0,0.00023199,2]
[365309611,1749592246099,-2732.0421735,0.00023199,2]
[365309612,1749592246109,-2732.0421735,0.00023199,2]
[365309613,1749592246119,-500.0,0.00023199,2]
[365309614,1749592246128,-582.08327069,0.00023199,2]
[365309615,1749592246138,-500.0,0.00023199,2]
[365309616,1749592246147,-500.0,0.00023199,2]
[365309617,1749592246157,-2732.0421735,0.00023199,2]
[365309618,1749592246166,-2732.0421735,0.00023199,2]
[365309619,1749592246176,-2732.0421735,0.00023199,2]
[365309620,1749592246185,-2732.0421735,0.00023199,2]
[365309621,1749592246194,-5374.42669632,0.00023199,2]
[365309622,1749592246204,-5374.42669632,0.00023199,2]
[365309623,1749592246213,-5374.42669632,0.00023199,2]
[365309624,1749592246222,-5374.42669632,0.00023199,2]
[365309625,1749592246232,-5374.42669632,0.00023199,2]
[365309626,1749592246242,-5374.42669632,0.00023199,2]
[365309627,1749592246251,-5374.42669632,0.00023199,2]
[365309628,1749592246260,-5374.42669632,0.00023199,2]
[365309629,1749592246270,-5374.42669632,0.00023199,2]
[365309631,1749592246279,-5123.62011716,0.00023199,2]
[365309632,1749592246288,-5123.62011716,0.00023199,2]
[365309633,1749592246297,-5123.62011716,0.00023199,2]
[365309634,1749592246306,-77551.27,0.000232,7]
[365309635,1749592246315,-151.0,0.000232,7]
[365309636,1749592246324,-151.0,0.000232,7]
[365309638,1749592246333,-151.0,0.000232,7]
[365309639,1749592246343,-267.760668,0.000232,7]
[365309640,1749592246353,-267.760668,0.000232,7]
[365309641,1749592246362,-151.0,0.000232,7]
[365309642,1749592246372,-151.0,0.000232,7]
[365309643,1749592246381,-177.677079,0.000232,7]
[365309644,1749592246390,-3487.58575877,0.00023245,8]
[365309645,1749592246400,-700.0,0.00023256,2]
[365309646,1749592246409,-460.0,0.00023287,4]
[365309647,1749592246418,-160.54747206,0.00023287,4]
[365309648,1749592246427,-460.0,0.00023287,4]
[365309649,1749592246437,-1250.35,0.00023287,4]
[365309650,1749592246446,-460.0,0.00023287,4]
[365309651,1749592246456,-460.0,0.00023287,4]
[365309652,1749592246465,-302.75211015,0.00023287,4]
[365309653,1749592246475,-710.28,0.00023287,4]
[365309654,1749592246485,-2863.13,0.00023287,4]
[365309655,1749592246564,-460.0,0.00023287,4]
[365309656,1749592246574,-460.0,0.00023287,4]
[365309657,1749592246584,-1134.58,0.00023287,4]
[365309658,1749592246593,-622.77,0.00023287,4]
[365309659,1749592246603,-568.86,0.00023287,4]
[365309660,1749592246612,-460.0,0.00023287,4]
[365309661,1749592246624,-527.47,0.00023287,4]
[365309662,1749592246633,-460.0,0.00023287,4]
[365309663,1749592246641,-2638.06,0.00023287,4]
[365309664,1749592246650,-460.0,0.00023287,4]
[365309665,1749592246660,-536.44,0.00023287,4]
[365309666,1749592246669,-571.16,0.00023287,2]
[365309667,1749592246679,-719.51,0.00023287,4]
[365309668,1749592246687,-460.0,0.00023287,4]
[365309669,1749592246696,-2214.42,0.00023287,4]
[365309670,1749592246706,-2617.65,0.00023287,4]
[365309671,1749592246714,-2017.81,0.00023287,4]
[365309672,1749592246724,-488.46,0.00023287,4]
[365309673,1749592246734,-510.53,0.00023287,4]
[365309674,1749592246744,-571.73,0.00023287,4]
[365309675,1749592246754,-2710.3,0.00023287,4]
[365309676,1749592246764,-3379.59,0.00023287,4]
[365309677,1749592246774,-460.0,0.00023287,4]
[365309678,1749592246783,-240.68,0.00023287,4]
[365309679,1749592246792,-460.0,0.00023287,4]
[365309680,1749592246802,-460.0,0.00023287,4]
[365309681,1749592246812,-2300.68,0.00023287,4]
[365309682,1749592246821,-802.54,0.00023287,4]
[365309683,1749592246832,-460.0,0.00023287,4]
[365309684,1749592246841,-2617.07,0.00023287,4]
[365309685,1749592246852,-1559.12,0.00023287,4]
[365309686,1749592246862,-1007.67,0.00023287,4]
[365309687,1749592246872,-460.0,0.00023287,4]
[365309688,1749592246882,-1036.48,0.00023287,4]
[365309689,1749592246892,-769.59,0.00023287,2]
[365309690,1749592246902,-859.0,0.00023293,2]
[365309691,1749592246912,-153.0,0.00023314,2]
[365309692,1749592246921,-153.0,0.00023314,2]
[365309693,1749592246931,-153.0,0.00023314,2]
[365309694,1749592246940,-153.0,0.00023314,2]
[365309695,1749592246949,-153.0,0.00023314,2]
[365309696,1749592246959,-153.0,0.00023314,2]
[365309697,1749592246969,-153.0,0.00023314,2]
[365309698,1749592246978,-153.0,0.00023314,2]
[365309699,1749592246988,-153.0,0.00023314,2]
[365309700,1749592246997,-153.0,0.00023314,2]
[365309701,1749592247007,-153.0,0.00023314,2]
[365309702,1749592247017,-153.0,0.00023314,2]
[365309703,1749592247026,-153.0,0.00023314,2]
[365309704,1749592247036,-153.0,0.00023314,2]
[365309705,1749592247045,-153.0,0.00023314,2]
[365309706,1749592247054,-153.0,0.00023314,2]
[365309707,1749592247064,-153.0,0.00023314,2]
[365309708,1749592247073,-153.0,0.00023314,2]
[365309709,1749592247083,-153.0,0.00023314,2]
[365309710,1749592247092,-153.0,0.00023314,2]
[365309711,1749592247101,-153.0,0.00023314,2]
[365309712,1749592247111,-153.0,0.00023314,2]
[365309713,1749592247120,-153.0,0.00023314,2]
[365309714,1749592247130,-694.188962,0.00023326,2]
[365309715,1749592247139,-694.188962,0.00023326,2]
[365309716,1749592247149,-153.0,0.00023326,2]
[365309717,1749592247159,-153.0,0.00023326,2]
[365309718,1749592247168,-153.0,0.00023326,2]
[365309719,1749592247178,-153.0,0.00023326,2]
[365309720,1749592247187,-153.0,0.00023326,2]
[365309721,1749592247196,-153.0,0.00023326,2]
[365309722,1749592247206,-153.0,0.00023326,2]
[365309723,1749592247216,-153.0,0.00023326,2]
[365309724,1749592247226,-153.0,0.00023326,2]
[365309725,1749592247235,-153.0,0.00023326,2]
[365309726,1749592247245,-153.0,0.00023326,2]
[365309727,1749592247254,-153.0,0.00023326,2]
[365309728,1749592247263,-153.0,0.00023326,2]
[365309729,1749592247273,-153.0,0.00023326,2]
[365309730,1749592247282,-153.0,0.00023326,2]
[365309731,1749592247292,-153.0,0.00023326,2]
[365309732,1749592247301,-153.0,0.00023326,2]
[365309733,1749592247310,-153.0,0.00023326,2]
[365309734,1749592247319,-153.0,0.00023326,2]
[365309735,1749592247329,-153.0,0.00023326,2]
[365309736,1749592247338,-153.0,0.00023326,2]
[365309737,1749592247347,-153.0,0.00023326,2]
[365309738,1749592247356,-153.0,0.00023326,2]
[365309739,1749592247365,-153.0,0.00023326,2]
[365309740,1749592247377,-153.0,0.00023326,2]
[365309741,1749592247386,-153.0,0.00023326,2]
[365309742,1749592247395,-153.0,0.00023326,2]
[365309743,1749592247405,-153.0,0.00023326,2]
[365309744,1749592247414,-153.0,0.00023326,2]
[365309745,1749592247423,-153.0,0.00023326,2]
[365309746,1749592247432,-153.0,0.00023326,2]
[365309747,1749592247442,-153.0,0.00023326,2]
[365309748,1749592247452,-153.0,0.00023326,2]
[365309749,1749592247462,-153.0,0.00023326,2]
[365309750,1749592247471,-153.0,0.00023326,2]
[365309751,1749592247480,-153.0,0.00023326,2]
[365309752,1749592247489,-153.0,0.00023326,2]
[365309753,1749592247498,-153.0,0.00023326,2]
[365309754,1749592247508,-153.0,0.00023326,2]
[365309755,1749592247517,-153.0,0.00023326,2]
[365309756,1749592247527,-153.0,0.00023326,2]
[365309757,1749592247539,-153.0,0.00023326,2]
[365309758,1749592247548,-153.0,0.00023326,2]
[365309759,1749592247557,-153.0,0.00023326,2]
[365309760,1749592247567,-153.0,0.00023326,2]
[365309761,1749592247577,-153.0,0.00023326,2]
[365309762,1749592247586,-153.0,0.00023326,2]
[365309763,1749592247596,-153.0,0.00023326,2]
[365309764,1749592247606,-153.0,0.00023326,2]
[365309765,1749592247615,-153.0,0.00023326,2]
[365309766,1749592247626,-153.0,0.00023326,2]
[365309767,1749592247635,-153.0,0.00023326,2]
[365309768,1749592247644,-153.0,0.00023326,2]
[365309769,1749592247653,-153.0,0.00023326,2]
[365309770,1749592247663,-153.0,0.00023326,2]
[365309771,1749592247672,-153.0,0.00023326,2]
[365309772,1749592247681,-153.0,0.00023326,2]
[365309773,1749592247690,-153.0,0.00023326,2]
[365309774,1749592247700,-153.0,0.00023326,2]
[365309775,1749592247709,-153.0,0.00023326,2]
[365309776,1749592247718,-3487.58575877,0.00023348,9]
[365309777,1749592247727,-769.59,0.00023387,5]
[365309778,1749592247736,-159.41069739,0.00023397,2]
[365309779,1749592247746,-151.0,0.00023399,7]
[365309780,1749592247755,-154.434336,0.00023399,7]
[365309781,1749592247764,-151.0,0.00023399,7]
[365309782,1749592247774,-151.0,0.00023399,7]
[365309783,1749592247783,-252.298943,0.00023399,7]
[365309784,1749592247792,-151.0,0.00023399,7]
[365309785,1749592247802,-151.0,0.00023399,7]
[365309786,1749592247811,-205.482674,0.00023399,7]
[365309787,1749592247820,-205.482674,0.00023399,7]
[365309788,1749592247829,-25260.90195305,0.000234,7]
[365309789,1749592247900,-25260.90195305,0.000234,7]
[365309790,1749592247915,-151.0,0.000234,6]
[365309791,1749592247924,-153.203852,0.000234,7]
[365309792,1749592247933,-298.559307,0.000234,7]
[365309793,1749592247943,-151.0,0.000234,7]
[365309794,1749592247952,-151.0,0.000234,7]
[365309795,1749592247962,-151.0,0.000234,7]
[365309796,1749592247971,-200.709546,0.000234,7]
[365309797,1749592247980,-153.01935202,0.000234,60]
[365309798,1749592247989,-160.0,0.00023402,2]
[365309799,1749592247999,-151.0,0.00023403,2]
[365309800,1749592248008,-5000.0,0.00023403,2]
[365309801,1749592248018,-160.02203713,0.00023403,2]
[365309802,1749592248028,-1688.0,0.00023403,2]
[365309803,1749592248037,-1500.0,0.00023403,2]
[365309804,1749592248047,-1500.0,0.00023403,2]
[365309805,1749592248056,-1500.0,0.00023403,2]
[365309806,1749592248065,-1500.0,0.00023403,2]
[365309807,1749592248074,-1500.0,0.00023403,2]
[365309808,1749592248084,-1500.0,0.00023403,2]
[365309809,1749592248093,-2500.0,0.00023403,2]
[365309810,1749592248102,-1317.3030559,0.00023403,2]
[365309811,1749592248112,-1500.0,0.00023403,2]
[365309812,1749592248122,-2500.0,0.00023403,2]
[365309813,1749592248132,-1500.0,0.00023403,2]
[365309814,1749592248141,-2500.0,0.00023403,2]
[365309815,1749592248151,-2323.54423715,0.00023403,2]
[365309816,1749592248160,-431.86117909,0.00023403,2]
[365309817,1749592248170,-207.4,0.00023403,2]
[365309818,1749592248180,-3487.58575877,0.00023452,9]
[365309819,1749592248189,-1688.0,0.00023458,2]
[365309820,1749592248198,-769.59,0.00023487,6]
[365309821,1749592248207,-4732.72,0.00023533,2]
[365309822,1749592248216,-151.0,0.00023555,7]
[365309823,1749592248225,-151.0,0.00023555,7]
[365309824,1749592248235,-3487.58575877,0.00023555,9]
[365309825,1749592248244,-280.35957518,0.0002356,2]
[365309826,1749592248254,-157.44561737,0.00023561,4]
[365309827,1749592248263,-460.0,0.00023561,4]
[365309828,1749592248272,-1250.35,0.00023561,4]
[365309829,1749592248282,-340.16,0.00023561,4]
[365309830,1749592248291,-460.0,0.00023561,4]
[365309831,1749592248301,-710.28,0.00023561,4]
[365309832,1749592248310,-2863.13,0.00023561,4]
[365309833,1749592248319,-460.0,0.00023561,4]
[365309834,1749592248328,-460.0,0.00023561,4]
[365309835,1749592248338,-1134.58,0.00023561,4]
[365309836,1749592248347,-622.77,0.00023561,4]
[365309837,1749592248357,-568.86,0.00023561,4]
[365309838,1749592248367,-460.0,0.00023561,4]
[365309839,1749592248378,-267.760668,0.00023561,7]
[365309840,1749592248388,-267.760668,0.00023561,7]
[365309841,1749592248397,-527.47,0.00023561,4]
[365309842,1749592248407,-460.0,0.00023561,4]
[365309843,1749592248416,-2638.06,0.00023561,4]
[365309844,1749592248426,-460.0,0.00023561,4]
[365309845,1749592248435,-536.44,0.00023561,4]
[365309846,1749592248445,-571.16,0.00023561,2]
[365309847,1749592248454,-719.51,0.00023561,4]
[365309848,1749592248464,-460.0,0.00023561,4]
[365309849,1749592248474,-2214.42,0.00023561,4]
[365309850,1749592248483,-2617.65,0.00023561,4]
[365309851,1749592248492,-2017.81,0.00023561,4]
[365309852,1749592248502,-488.46,0.00023561,4]
[365309853,1749592248512,-510.53,0.00023561,4]
[365309854,1749592248522,-571.73,0.00023561,4]
[365309855,1749592248534,-2710.3,0.00023561,4]
[365309856,1749592248544,-3379.59,0.00023561,4]
[365309857,1749592248553,-460.0,0.00023561,4]
[365309858,1749592248562,-460.0,0.00023561,4]